[Event "17th Memorial Lezcano Montalvo 2025"]
[Site "Gran Canaria"]
[Date "2025.04.14"]
[Round "3.39"]
[White "Bolivar Castro, Alejandro"]
[Black "Arlet, Benjamin Andres"]
[Result "1-0"]
[Annotator "NA RC"]
[ECO "A80"]
[WhiteElo "2006"]
[BlackElo "1721"]
[PlyCount "61"]
[EventDate "2025.04.13"]
[EventType "swiss"]
[EventCountry "ESP"]
[SourceTitle "playchess.com"]
[Source "ChessBase"]
[SourceQuality "1"]
[TimeControl "5400+30"]

1. d4 {[%emt 0:00:01]} f5 {[%emt 0:00:19]} 2. Bg5 {[%emt 0:00:06]} Nf6 {[%emt 0:00:20]} 3. Nc3 {[%emt 0:00:20]} g6 {[%emt 0:00:37]} 4. h4 {[%emt 0:00:42]} Ne4 {[%emt 0:04:33]} 5. Nxe4 {[%emt 0:01:00]} fxe4 {[%emt 0:00:08]} 6. h5 {[%emt 0:00:24]} Bg7 {[%emt 0:00:21]} 7. e3 {[%emt 0:00:38]} h6 {[%emt 0:01:11]} 8. hxg6 {[%emt 0:02:06]} hxg5 {[%emt 0:02:12]} 9. Rxh8+ {[%emt 0:00:06]} Bxh8 {[%emt 0:00:10]} 10. Qh5 {[%emt 0:09:29]} Bg7 {[%emt 0:00:15]} 11. Qh7 {[%emt 0:02:22]} Kf8 {[%emt 0:00:09]} 12. f3 {[%emt 0:00:48]} d6 {[%emt 0:29:47]} 13. Bc4 {[%emt 0:09:06]} d5 {[%emt 0:01:43]} 14. fxe4 {[%emt 0:00:45]} dxc4 {[%emt 0:00:07]} 15. O-O-O {[%emt 0:00:13]} Bf5 {[%emt 0:00:05]} 16. Rf1 {[%emt 0:01:35]} e6 {[%emt 0:03:58]} 17. g4 {[%emt 0:04:23]} Nd7 {[%emt 0:15:33]} 18. gxf5 {[%emt 0:01:03]} exf5 {[%emt 0:00:18]} 19. Rxf5+ {[%emt 0:00:27]} Nf6 {[%emt 0:00:05]} 20. e5 {[%emt 0:00:43]} Qe7 {[%emt 0:00:10]} 21. Rf3 {[%emt 0:06:58]} Ke8 {[%emt 0:01:49]} 22. exf6 {[%emt 0:00:13]} Bxf6 {[%emt 0:00:07]} 23. Qg8+ {[%emt 0:04:26]} Kd7 {[%emt 0:00:25]} 24. Qxa8 {[%emt 0:00:56]} g4 {[%emt 0:00:07]} 25. Rf1 {[%emt 0:01:16]} Qxe3+ {[%emt 0:00:38]} 26. Kb1 {[%emt 0:00:09]} Qxd4 {[%emt 0:05:26]} 27. Qxb7 {[%emt 0:00:32]} g3 {[%emt 0:00:06]} 28. Nf3 {[%emt 0:07:25]} g2 {[%emt 0:03:57]} 29. Rg1 {[%emt 0:02:38]} Qf2 {[%emt 0:00:16]} 30. Rd1+ {[%emt 0:01:17]} Ke6 {[%emt 0:00:28]} 31. Qe4+ {[%emt 0:43:53]} 1-0

[Event "17th Memorial Lezcano Montalvo 2025"]
[Site "Gran Canaria"]
[Date "2025.04.14"]
[Round "3.40"]
[White "Fernandez Hernandez, Javier"]
[Black "Schmitz, Andreas Arnold"]
[Result "1-0"]
[Annotator "NA RC"]
[ECO "A22"]
[WhiteElo "1689"]
[BlackElo "1967"]
[PlyCount "81"]
[EventDate "2025.04.13"]
[EventType "swiss"]
[EventCountry "ESP"]
[SourceTitle "playchess.com"]
[Source "ChessBase"]
[SourceQuality "1"]
[TimeControl "5400+30"]

1. c4 {[%emt 0:00:03]} e5 {[%emt 0:00:09]} 2. Nc3 {[%emt 0:01:23]} Nf6 {[%emt 0:00:29]} 3. b3 {[%emt 0:00:09]} Bc5 {[%emt 0:01:00]} 4. e3 {[%emt 0:00:14]} Nc6 {[%emt 0:00:39]} 5. a3 {[%emt 0:00:12]} a5 {[%emt 0:00:19]} 6. Bb2 {[%emt 0:00:13]} O-O {[%emt 0:03:15]} 7. h4 {[%emt 0:00:31]} d5 {[%emt 0:02:42]} 8. cxd5 {[%emt 0:00:48]} Nxd5 {[%emt 0:00:09]} 9. Bc4 {[%emt 0:00:08]} Nf6 {[%emt 0:02:19]} 10. Nf3 {[%emt 0:00:36]} Bg4 {[%emt 0:00:45]} 11. Qc2 {[%emt 0:00:04]} Qe7 {[%emt 0:01:31]} 12. Ng5 {[%emt 0:00:32]} Bh5 {[%emt 0:08:32]} 13. Nd5 {[%emt 0:02:43]} Bg6 {[%emt 0:00:56]} 14. Nxe7+ {[%emt 0:00:13]} Bxe7 {[%emt 0:00:06]} 15. Bd3 {[%emt 0:08:06]} Bxd3 {[%emt 0:00:49]} 16. Qxd3 {[%emt 0:00:07]} h6 {[%emt 0:02:04]} 17. Ne4 {[%emt 0:00:14]} Nxe4 {[%emt 0:02:06]} 18. Qxe4 {[%emt 0:02:33]} f5 {[%emt 0:00:29]} 19. Qc4+ {[%emt 0:03:09]} Kh7 {[%emt 0:00:43]} 20. Qc2 {[%emt 0:04:23]} h5 {[%emt 0:00:53]} 21. Ke2 {[%emt 0:04:24]} g6 {[%emt 0:00:28]} 22. Bc3 {[%emt 0:04:40]} e4 {[%emt 0:02:09]} 23. Rag1 {[%emt 0:04:53]} Bxa3 {[%emt 0:00:56]} 24. g4 {[%emt 0:01:25]} hxg4 {[%emt 0:02:29]} 25. h5 {[%emt 0:00:15]} g5 {[%emt 0:00:07]} 26. Rxg4 {[%emt 0:00:42]} Kh6 {[%emt 0:02:04]} 27. Rxe4 {[%emt 0:07:09]} fxe4 {[%emt 0:01:04]} 28. Qxe4 {[%emt 0:00:08]} Rg8 {[%emt 0:01:04]} 29. Qe6+ {[%emt 0:00:06]} Kh7 {[%emt 0:00:15]} 30. Qf7+ {[%emt 0:00:04]} Kh6 {[%emt 0:00:11]} 31. Bf6 {[%emt 0:00:06]} Bd6 {[%emt 0:03:06]} 32. Bxg5+ {[%emt 0:03:42]} Rxg5 {[%emt 0:03:01]} 33. Qf6+ {[%emt 0:00:15]} Kh7 {[%emt 0:00:06]} 34. Qxg5 {[%emt 0:00:09]} Rg8 {[%emt 0:00:26]} 35. Qf5+ {[%emt 0:00:10]} Kh8 {[%emt 0:00:43]} 36. Qf6+ {[%emt 0:02:56]} Kh7 {[%emt 0:00:11]} 37. d4 {[%emt 0:00:13]} Be7 {[%emt 0:05:16]} 38. Qf7+ {[%emt 0:00:21]} Rg7 {[%emt 0:01:05]} 39. Qf5+ {[%emt 0:00:09]} Kh6 {[%emt 0:03:27]} 40. Qe6+ {[%emt 0:01:18]} Kh7 {[%emt 0:00:13]} 41. h6 {[%emt 0:00:42]} 1-0

[Event "17th Memorial Lezcano Montalvo 2025"]
[Site "Gran Canaria"]
[Date "2025.04.14"]
[Round "3.41"]
[White "Gonzalez Martinez, Miguel Angel"]
[Black "Peraza Concepcion, Airam"]
[Result "1-0"]
[Annotator "NA RC"]
[ECO "C43"]
[WhiteElo "2134"]
[BlackElo "1712"]
[PlyCount "75"]
[EventDate "2025.04.13"]
[EventType "swiss"]
[EventCountry "ESP"]
[SourceTitle "playchess.com"]
[Source "ChessBase"]
[SourceQuality "1"]
[TimeControl "5400+30"]

1. e4 {[%emt 1:31:00]} e5 {[%emt 0:05:52]} 2. Nf3 {[%emt 0:00:00]} Nf6 {[%emt 0:02:10]} 3. d4 {[%emt 0:00:00]} Nxe4 {[%emt 0:01:22]} 4. Bd3 {[%emt 0:00:00]} d5 {[%emt 0:01:14]} 5. Nxe5 {[%emt 0:00:00]} Nf6 {[%emt 0:03:11]} 6. O-O {[%emt 0:00:00]} Be7 {[%emt 0:00:29]} 7. Nd2 {[%emt 0:00:00]} O-O {[%emt 0:04:15]} 8. Re1 {[%emt 0:00:00]} Nbd7 {[%emt 0:02:17]} 9. Ndf3 {[%emt 0:00:00]} h6 {[%emt 0:00:58]} 10. Qe2 {[%emt 0:00:00]} Re8 {[%emt 0:07:22]} 11. Nxf7 {[%emt 0:00:00]} Kxf7 {[%emt 0:00:46]} 12. Qe6+ {[%emt 0:00:00]} Kf8 {[%emt 0:00:55]} 13. Bg6 {[%emt 0:00:00]} Ne5 {[%emt 0:02:03]} 14. Qxe5 {[%emt 0:00:00]} Bd6 {[%emt 0:00:00]} 15. Qxf6+ {[%emt 0:00:00]} gxf6 {[%emt 0:00:18]} 16. Bxh6+ {[%emt 0:00:00]} Kg8 {[%emt 0:00:35]} 17. Rxe8+ {[%emt 0:00:00]} Qxe8 {[%emt 0:01:05]} 18. Bxe8 {[%emt 0:00:00]} Kh7 {[%emt 0:00:59]} 19. Bd2 {[%emt 0:00:00]} c6 {[%emt 0:00:34]} 20. Bh5 {[%emt 0:00:00]} Bf5 {[%emt 0:01:13]} 21. Re1 {[%emt 0:00:00]} Kg7 {[%emt 0:01:46]} 22. Re8 {[%emt 0:00:00]} Rxe8 {[%emt 0:01:08]} 23. Bxe8 {[%emt 0:00:00]} Bxc2 {[%emt 0:00:33]} 24. Bd7 {[%emt 0:00:00]} Bd3 {[%emt 0:01:15]} 25. Bc8 {[%emt 0:00:00]} Ba6 {[%emt 0:00:07]} 26. g4 {[%emt 0:00:00]} c5 {[%emt 0:01:16]} 27. Be6 {[%emt 0:00:00]} cxd4 {[%emt 0:01:21]} 28. Nxd4 {[%emt 0:00:00]} Be5 {[%emt 0:00:14]} 29. Bc3 {[%emt 0:00:00]} Kf8 {[%emt 0:00:47]} 30. Bxd5 {[%emt 0:00:00]} Ke8 {[%emt 0:01:11]} 31. h4 {[%emt 0:00:00]} b5 {[%emt 0:00:00]} 32. Bc6+ {[%emt 0:00:00]} Kf7 {[%emt 0:00:39]} 33. Bxb5 {[%emt 0:00:00]} Bc8 {[%emt 0:00:36]} 34. Bc4+ {[%emt 0:00:00]} Ke8 {[%emt 0:00:17]} 35. g5 {[%emt 0:00:00]} fxg5 {[%emt 0:00:50]} 36. hxg5 {[%emt 0:00:00]} Kf8 {[%emt 0:01:08]} 37. Ne2 {[%emt 0:00:00]} Bc7 {[%emt 0:00:42]} 38. g6 {[%emt 0:00:00]} 1-0

[Event "17th Memorial Lezcano Montalvo 2025"]
[Site "Gran Canaria"]
[Date "2025.04.14"]
[Round "3.42"]
[White "Fernandez De La Hoz A., Carlos"]
[Black "Perez Rosales, Pedro"]
[Result "0-1"]
[Annotator "NA RC"]
[ECO "B07"]
[WhiteElo "1687"]
[BlackElo "1942"]
[PlyCount "89"]
[EventDate "2025.04.13"]
[EventType "swiss"]
[EventCountry "ESP"]
[SourceTitle "playchess.com"]
[Source "ChessBase"]
[SourceQuality "1"]
[TimeControl "5400+30"]

1. d4 {[%emt 0:04:49]} d6 {[%emt 0:00:09]} 2. e4 {[%emt 0:00:51]} Nf6 {[%emt 0:00:11]} 3. Bc4 {[%emt 0:02:48]} d5 {[%emt 0:07:34]} 4. exd5 {[%emt 0:02:46]} Nxd5 {[%emt 0:00:08]} 5. Ne2 {[%emt 0:01:49]} Be6 {[%emt 0:03:34]} 6. c3 {[%emt 0:10:11]} c6 {[%emt 0:02:19]} 7. Nd2 {[%emt 0:03:52]} g6 {[%emt 0:01:23]} 8. Bd3 {[%emt 0:03:38]} Bg7 {[%emt 0:00:38]} 9. Ne4 {[%emt 0:01:43]} O-O {[%emt 0:00:58]} 10. Nc5 {[%emt 0:01:41]} Bc8 {[%emt 0:02:04]} 11. Bd2 {[%emt 0:03:09]} Nd7 {[%emt 0:00:39]} 12. Ne4 {[%emt 0:02:09]} h6 {[%emt 0:06:55]} 13. Qc1 {[%emt 0:01:33]} Kh7 {[%emt 0:00:21]} 14. h4 {[%emt 0:08:51]} f5 {[%emt 0:00:30]} 15. h5 {[%emt 0:06:21]} fxe4 {[%emt 0:18:49]} 16. hxg6+ {[%emt 0:00:16]} Kxg6 {[%emt 0:00:17]} 17. Bxe4+ {[%emt 0:02:01]} Kf7 {[%emt 0:01:08]} 18. Bxh6 {[%emt 0:04:15]} Rh8 {[%emt 0:01:12]} 19. Bg6+ {[%emt 0:04:47]} Kg8 {[%emt 0:03:29]} 20. Ng3 {[%emt 0:13:32]} Nf8 {[%emt 0:07:43]} 21. Bd3 {[%emt 0:03:56]} e5 {[%emt 0:00:59]} 22. Qd2 {[%emt 0:01:43]} Qf6 {[%emt 0:02:48]} 23. Bg5 {[%emt 0:02:05]} Rxh1+ {[%emt 0:00:07]} 24. Nxh1 {[%emt 0:00:18]} Qf7 {[%emt 0:00:40]} 25. O-O-O {[%emt 0:00:24]} exd4 {[%emt 0:00:30]} 26. c4 {[%emt 0:01:28]} Nf6 {[%emt 0:00:43]} 27. Ng3 {[%emt 0:00:39]} Nh5 {[%emt 0:06:04]} 28. Ne4 {[%emt 0:01:02]} Ne6 {[%emt 0:01:04]} 29. Kb1 {[%emt 0:03:35]} Nhf4 {[%emt 0:01:55]} 30. Nf6+ {[%emt 0:02:18]} Bxf6 {[%emt 0:00:33]} 31. Bxf4 {[%emt 0:00:15]} Nxf4 {[%emt 0:00:17]} 32. Qxf4 {[%emt 0:00:02]} Bg7 {[%emt 0:01:10]} 33. Qe4 {[%emt 0:00:55]} Be6 {[%emt 0:01:13]} 34. Qh7+ {[%emt 0:00:41]} Kf8 {[%emt 0:00:06]} 35. Bg6 {[%emt 0:01:43]} Qf6 {[%emt 0:00:22]} 36. Bd3 {[%emt 0:00:30]} Bf7 {[%emt 0:04:11]} 37. Qh2 {[%emt 0:00:17]} Re8 {[%emt 0:00:21]} 38. Qc7 {[%emt 0:00:31]} Bg6 {[%emt 0:00:27]} 39. Qg3 {[%emt 0:01:52]} Be4 {[%emt 0:03:43]} 40. Kc2 {[%emt 0:03:35]} Qf5 {[%emt 0:00:32]} 41. Kb3 {[%emt 0:00:36]} b5 {[%emt 0:02:21]} 42. Qd6+ {[%emt 0:00:40]} Kg8 {[%emt 0:00:41]} 43. Re1 {[%emt 0:00:43]} Be5 {[%emt 0:01:18]} 44. Bxe4 {[%emt 0:00:23]} Bxd6 {[%emt 0:00:07]} 45. Bd3 {[%emt 0:01:47]} 0-1

[Event "17th Memorial Lezcano Montalvo 2025"]
[Site "Gran Canaria"]
[Date "2025.04.14"]
[Round "3.43"]
[White "Blanco Barros, Juan Carlos"]
[Black "Castellanos Gomez, Pascual"]
[Result "1-0"]
[Annotator "NA RC"]
[ECO "B07"]
[WhiteElo "1941"]
[BlackElo "1672"]
[PlyCount "95"]
[EventDate "2025.04.13"]
[EventType "swiss"]
[EventCountry "ESP"]
[SourceTitle "playchess.com"]
[Source "ChessBase"]
[SourceQuality "1"]
[TimeControl "5400+30"]

1. e4 {[%emt 0:02:49]} d6 {[%emt 0:00:30]} 2. d4 {[%emt 0:00:16]} Nf6 {[%emt 0:00:26]} 3. Nc3 {[%emt 0:00:15]} Nbd7 {[%emt 0:00:24]} 4. f4 {[%emt 0:00:44]} e5 {[%emt 0:02:40]} 5. dxe5 {[%emt 0:01:19]} dxe5 {[%emt 1:29:00]} 6. fxe5 {[%emt 1:28:07]} Nxe5 {[%emt 0:00:00]} 7. Qxd8+ {[%emt 0:00:00]} Kxd8 {[%emt 0:00:00]} 8. Bg5 {[%emt 0:00:00]} Be7 {[%emt 0:00:00]} 9. O-O-O+ {[%emt 0:00:00]} Bd7 {[%emt 0:00:00]} 10. Nf3 {[%emt 0:00:00]} Nxf3 {[%emt 0:00:00]} 11. gxf3 {[%emt 0:00:00]} Ke8 {[%emt 0:00:00]} 12. e5 {[%emt 0:00:00]} Nd5 {[%emt 0:00:00]} 13. Nxd5 {[%emt 0:00:00]} Bxg5+ {[%emt 0:00:00]} 14. f4 {[%emt 0:00:00]} Bd8 {[%emt 0:00:00]} 15. Ne3 {[%emt 0:00:00]} c6 {[%emt 0:00:00]} 16. Bd3 {[%emt 0:00:00]} b5 {[%emt 0:00:00]} 17. Kb1 {[%emt 0:00:00]} g6 {[%emt 0:00:00]} 18. Rhe1 {[%emt 0:00:00]} Bb6 {[%emt 0:00:00]} 19. Be4 {[%emt 0:00:00]} Ke7 {[%emt 0:00:00]} 20. Rd6 {[%emt 0:00:00]} Rad8 {[%emt 0:00:00]} 21. f5 {[%emt 0:00:00]} gxf5 {[%emt 0:00:00]} 22. Bxc6 {[%emt 0:00:00]} Bxc6 {[%emt 0:00:00]} 23. Nxf5+ {[%emt 0:00:00]} Kf8 {[%emt 0:00:00]} 24. Rxc6 {[%emt 0:00:00]} Rg8 {[%emt 0:00:55]} 25. Rf1 {[%emt 0:00:00]} Rg1 {[%emt 0:00:29]} 26. Rxg1 {[%emt 0:00:00]} Bxg1 {[%emt 0:00:13]} 27. a4 {[%emt 0:00:00]} Bxh2 {[%emt 0:03:43]} 28. axb5 {[%emt 0:00:00]} Bxe5 {[%emt 0:00:15]} 29. Rh6 {[%emt 0:00:00]} Rd1+ {[%emt 0:02:09]} 30. Ka2 {[%emt 0:00:00]} Rf1 {[%emt 0:00:14]} 31. Rh5 {[%emt 0:00:00]} f6 {[%emt 0:01:18]} 32. Ne3 {[%emt 0:00:00]} Rf3 {[%emt 0:00:10]} 33. Nc4 {[%emt 0:00:00]} Rf2 {[%emt 0:01:45]} 34. Kb3 {[%emt 0:00:00]} Rf3+ {[%emt 0:00:29]} 35. c3 {[%emt 0:00:00]} Bd4 {[%emt 0:01:18]} 36. Rxh7 {[%emt 0:00:00]} Bf2 {[%emt 0:00:15]} 37. Nd6 {[%emt 0:01:14]} Bc5 {[%emt 0:00:27]} 38. Nc8 {[%emt 0:00:49]} Re3 {[%emt 0:00:45]} 39. Nxa7 {[%emt 0:00:39]} Re7 {[%emt 0:00:22]} 40. Rxe7 {[%emt 0:00:15]} Kxe7 {[%emt 0:00:14]} 41. Nc6+ {[%emt 0:00:14]} Kd6 {[%emt 0:01:34]} 42. Kc4 {[%emt 0:00:33]} f5 {[%emt 0:00:26]} 43. b4 {[%emt 0:00:37]} Bb6 {[%emt 0:00:19]} 44. Kd3 {[%emt 0:00:13]} f4 {[%emt 0:00:16]} 45. c4 {[%emt 0:00:32]} f3 {[%emt 0:00:15]} 46. c5+ {[%emt 0:00:17]} Bxc5 {[%emt 0:01:39]} 47. bxc5+ {[%emt 0:00:15]} Kxc5 {[%emt 0:00:15]} 48. Nd4 {[%emt 0:00:08]} 1-0

[Event "17th Memorial Lezcano Montalvo 2025"]
[Site "Gran Canaria"]
[Date "2025.04.14"]
[Round "3.44"]
[White "Valido Ramos, Adrian"]
[Black "de Leon Navarro, Claudio"]
[Result "0-1"]
[Annotator "NA RC"]
[ECO "C07"]
[WhiteElo "1667"]
[BlackElo "1918"]
[PlyCount "132"]
[EventDate "2025.04.13"]
[EventType "swiss"]
[EventCountry "ESP"]
[SourceTitle "playchess.com"]
[Source "ChessBase"]
[SourceQuality "1"]
[TimeControl "5400+30"]

1. e4 {[%emt 0:00:02]} e6 {[%emt 0:02:16]} 2. d4 {[%emt 0:00:03]} d5 {[%emt 0:00:08]} 3. Nd2 {[%emt 0:00:04]} c5 {[%emt 0:00:25]} 4. c3 {[%emt 0:00:07]} cxd4 {[%emt 0:00:46]} 5. cxd4 {[%emt 0:00:07]} dxe4 {[%emt 0:00:55]} 6. Nxe4 {[%emt 0:00:37]} Nf6 {[%emt 0:00:32]} 7. Nxf6+ {[%emt 0:01:18]} Qxf6 {[%emt 0:00:09]} 8. Nf3 {[%emt 0:00:13]} Bb4+ {[%emt 0:01:14]} 9. Bd2 {[%emt 0:00:35]} Bxd2+ {[%emt 0:00:35]} 10. Qxd2 {[%emt 0:00:04]} Bd7 {[%emt 0:00:15]} 11. Be2 {[%emt 0:05:46]} O-O {[%emt 0:01:28]} 12. O-O {[%emt 0:00:05]} Bc6 {[%emt 0:00:13]} 13. Rfd1 {[%emt 0:02:21]} Bd5 {[%emt 0:02:33]} 14. a3 {[%emt 0:01:15]} Rd8 {[%emt 0:02:15]} 15. Qe3 {[%emt 0:01:33]} Nc6 {[%emt 0:03:06]} 16. Ne5 {[%emt 0:01:15]} Rac8 {[%emt 0:02:32]} 17. Rac1 {[%emt 0:01:18]} h6 {[%emt 0:03:24]} 18. f4 {[%emt 0:04:02]} Rd6 {[%emt 0:07:24]} 19. Bh5 {[%emt 0:10:07]} g6 {[%emt 0:06:27]} 20. Qg3 {[%emt 0:02:48]} Kh7 {[%emt 0:01:46]} 21. Be2 {[%emt 0:01:45]} Nxd4 {[%emt 0:05:06]} 22. Bd3 {[%emt 0:04:47]} Rxc1 {[%emt 0:04:43]} 23. Rxc1 {[%emt 0:00:04]} Bc6 {[%emt 0:04:34]} 24. Rd1 {[%emt 0:12:00]} Be4 {[%emt 0:17:56]} 25. Qf2 {[%emt 0:01:56]} Nc6 {[%emt 0:11:32]} 26. Nxc6 {[%emt 0:04:47]} bxc6 {[%emt 0:01:54]} 27. Be2 {[%emt 0:01:14]} Rxd1+ {[%emt 0:01:03]} 28. Bxd1 {[%emt 0:00:03]} Qd8 {[%emt 0:01:18]} 29. Ba4 {[%emt 0:01:43]} Qb6 {[%emt 0:02:20]} 30. Qxb6 {[%emt 0:01:55]} axb6 {[%emt 0:00:05]} 31. Kf2 {[%emt 0:00:14]} Kg7 {[%emt 0:00:49]} 32. g3 {[%emt 0:00:54]} Kf6 {[%emt 0:00:24]} 33. Bb3 {[%emt 0:00:42]} Bd5 {[%emt 0:01:23]} 34. Bc2 {[%emt 0:01:42]} e5 {[%emt 0:01:23]} 35. h4 {[%emt 0:01:09]} c5 {[%emt 0:02:50]} 36. b4 {[%emt 0:01:00]} cxb4 {[%emt 0:01:38]} 37. axb4 {[%emt 0:00:04]} g5 {[%emt 0:02:20]} 38. hxg5+ {[%emt 0:02:12]} hxg5 {[%emt 0:00:22]} 39. fxg5+ {[%emt 0:00:15]} Kxg5 {[%emt 0:00:10]} 40. Ke3 {[%emt 0:00:05]} f5 {[%emt 0:00:49]} 41. Bd1 {[%emt 0:00:53]} Bg2 {[%emt 0:02:47]} 42. Kf2 {[%emt 0:01:05]} Bc6 {[%emt 0:00:37]} 43. Ke3 {[%emt 0:03:19]} Kf6 {[%emt 0:01:14]} 44. Bb3 {[%emt 0:02:02]} Ke7 {[%emt 0:00:46]} 45. Ba2 {[%emt 0:02:41]} Kd6 {[%emt 0:00:22]} 46. Bb3 {[%emt 0:00:07]} Bd5 {[%emt 0:00:18]} 47. Bc2 {[%emt 0:00:06]} Be6 {[%emt 0:01:03]} 48. Bd3 {[%emt 0:00:30]} Kd5 {[%emt 0:01:17]} 49. Be2 {[%emt 0:01:05]} Bd7 {[%emt 0:01:36]} 50. Bd3 {[%emt 0:00:24]} Kd6 {[%emt 0:00:42]} 51. Be2 {[%emt 0:00:31]} Bc6 {[%emt 0:00:24]} 52. Bd3 {[%emt 0:01:47]} Ke6 {[%emt 0:00:13]} 53. Bc4+ {[%emt 0:00:18]} Bd5 {[%emt 0:00:23]} 54. Bd3 {[%emt 0:00:03]} Kf6 {[%emt 0:00:19]} 55. Be2 {[%emt 0:00:26]} Bc6 {[%emt 0:02:11]} 56. Bd3 {[%emt 0:00:19]} Kg5 {[%emt 0:00:11]} 57. Be2 {[%emt 0:00:04]} f4+ {[%emt 0:00:27]} 58. gxf4+ {[%emt 0:00:42]} exf4+ {[%emt 0:00:08]} 59. Kf2 {[%emt 0:01:24]} Kf5 {[%emt 0:00:14]} 60. Bd1 {[%emt 0:01:14]} Ke5 {[%emt 0:00:27]} 61. Be2 {[%emt 0:00:38]} Kd4 {[%emt 0:01:18]} 62. Ke1 {[%emt 0:01:41]} Ke3 {[%emt 0:00:47]} 63. Bc4 {[%emt 0:02:20]} Bg2 {[%emt 0:00:20]} 64. Bb5 {[%emt 0:00:54]} f3 {[%emt 0:00:23]} 65. Bc4 {[%emt 0:00:06]} f2+ {[%emt 0:00:14]} 66. Kd1 {[%emt 0:00:11]} Bf3+ {[%emt 0:00:29]} 0-1

[Event "17th Memorial Lezcano Montalvo 2025"]
[Site "Gran Canaria"]
[Date "2025.04.14"]
[Round "3.45"]
[White "Cabrera Martel, Isaac"]
[Black "Hernandez Guerra, Luna Yue"]
[Result "0-1"]
[Annotator "NA RC"]
[ECO "D00"]
[WhiteElo "1655"]
[BlackElo "1897"]
[PlyCount "92"]
[EventDate "2025.04.13"]
[EventType "swiss"]
[EventCountry "ESP"]
[SourceTitle "playchess.com"]
[Source "ChessBase"]
[SourceQuality "1"]
[TimeControl "5400+30"]

1. d4 {[%emt 0:00:04]} Nf6 {[%emt 0:00:38]} 2. Nc3 {[%emt 0:00:07]} d5 {[%emt 0:00:00]} 3. Bf4 {[%emt 0:00:05]} e6 {[%emt 0:00:00]} 4. e3 {[%emt 0:02:03]} Bb4 {[%emt 0:00:35]} 5. Bd3 {[%emt 0:01:34]} c5 {[%emt 0:01:32]} 6. dxc5 {[%emt 0:00:17]} Nbd7 {[%emt 0:00:24]} 7. Nf3 {[%emt 0:15:05]} Bxc3+ {[%emt 0:01:38]} 8. bxc3 {[%emt 0:00:25]} Nxc5 {[%emt 0:00:08]} 9. O-O {[%emt 0:02:13]} O-O {[%emt 0:01:43]} 10. Ne5 {[%emt 0:06:56]} Nfe4 {[%emt 0:06:02]} 11. c4 {[%emt 0:17:22]} f6 {[%emt 0:01:53]} 12. Nf3 {[%emt 0:13:04]} e5 {[%emt 0:00:36]} 13. Bxe5 {[%emt 0:02:04]} fxe5 {[%emt 0:00:39]} 14. Nxe5 {[%emt 0:00:37]} Be6 {[%emt 0:07:45]} 15. cxd5 {[%emt 0:02:31]} Bxd5 {[%emt 0:01:07]} 16. f4 {[%emt 0:02:46]} Qe7 {[%emt 0:05:47]} 17. Qg4 {[%emt 0:06:13]} Qe6 {[%emt 0:04:56]} 18. Qh4 {[%emt 0:00:55]} Qf6 {[%emt 0:06:42]} 19. Qg4 {[%emt 0:02:30]} Be6 {[%emt 0:01:57]} 20. Qh5 {[%emt 0:04:15]} Qf5 {[%emt 0:03:44]} 21. Qh4 {[%emt 0:01:26]} g5 {[%emt 0:05:29]} 22. Qe1 {[%emt 0:04:26]} gxf4 {[%emt 0:03:08]} 23. exf4 {[%emt 0:00:26]} Nxd3 {[%emt 0:00:12]} 24. cxd3 {[%emt 0:01:58]} Nc5 {[%emt 0:01:16]} 25. g4 {[%emt 0:00:41]} Qf6 {[%emt 0:00:25]} 26. Rc1 {[%emt 0:00:59]} Nd7 {[%emt 0:05:52]} 27. d4 {[%emt 0:01:18]} Nxe5 {[%emt 0:04:59]} 28. dxe5 {[%emt 0:00:33]} Qg7 {[%emt 0:01:02]} 29. Rf2 {[%emt 0:03:07]} Kh8 {[%emt 0:05:37]} 30. h3 {[%emt 0:02:44]} Rad8 {[%emt 0:02:39]} 31. Rc3 {[%emt 0:02:29]} Rd4 {[%emt 0:04:44]} 32. Qc1 {[%emt 0:00:59]} Bxg4 {[%emt 0:04:45]} 33. Rc7 {[%emt 0:01:38]} Rd1+ {[%emt 0:01:27]} 34. Qxd1 {[%emt 0:01:43]} Bxd1+ {[%emt 0:00:07]} 35. Rxg7 {[%emt 0:00:16]} Kxg7 {[%emt 0:00:08]} 36. Rd2 {[%emt 0:00:16]} Ba4 {[%emt 0:00:12]} 37. Rd4 {[%emt 0:00:19]} Bc6 {[%emt 0:00:21]} 38. Kf2 {[%emt 0:00:14]} Kg6 {[%emt 0:00:52]} 39. Kg3 {[%emt 0:01:31]} Kf5 {[%emt 0:00:21]} 40. h4 {[%emt 0:00:32]} Rg8+ {[%emt 0:00:37]} 41. Kf2 {[%emt 0:00:40]} Rg4 {[%emt 0:00:13]} 42. Ke3 {[%emt 0:00:40]} Rxh4 {[%emt 0:00:30]} 43. Rd6 {[%emt 0:00:08]} Rh3+ {[%emt 0:00:06]} 44. Kd4 {[%emt 0:00:21]} Kxf4 {[%emt 0:00:31]} 45. e6 {[%emt 0:00:35]} Rh1 {[%emt 0:00:11]} 46. e7 {[%emt 0:00:24]} Rd1+ {[%emt 0:00:14]} 0-1

[Event "17th Memorial Lezcano Montalvo 2025"]
[Site "Gran Canaria"]
[Date "2025.04.14"]
[Round "3.46"]
[White "Garcia Rodriguez, Adriana"]
[Black "Bujdoso, Erik"]
[Result "1-0"]
[Annotator "NA COMBH"]
[ECO "B13"]
[WhiteElo "1893"]
[BlackElo "1637"]
[PlyCount "73"]
[EventDate "2025.04.13"]
[EventType "swiss"]
[EventCountry "ESP"]
[SourceTitle "playchess.com"]
[Source "ChessBase"]
[SourceQuality "1"]
[TimeControl "5400+30"]

1. e4 c6 {[%emt 0:00:08]} 2. d4 {[%emt 0:00:11]} d5 {[%emt 0:00:05]} 3. exd5 {[%emt 0:00:23]} cxd5 {[%emt 0:00:02]} 4. c4 {[%emt 0:00:12]} Nf6 {[%emt 0:00:14]} 5. Nc3 {[%emt 0:00:06]} Nc6 {[%emt 0:00:34]} 6. Nf3 {[%emt 0:00:49]} Bg4 {[%emt 0:00:27]} 7. cxd5 {[%emt 0:02:50]} Nxd5 {[%emt 0:00:24]} 8. Qb3 {[%emt 0:02:40]} Bxf3 {[%emt 0:03:32]} 9. gxf3 {[%emt 0:00:10]} Nxc3 {[%emt 0:00:58]} 10. bxc3 {[%emt 0:00:31]} Qb6 {[%emt 0:02:11]} 11. Qxb6 {[%emt 0:08:52]} axb6 {[%emt 0:00:02]} 12. Bc4 {[%emt 0:05:32]} e6 {[%emt 0:01:35]} 13. Rb1 {[%emt 0:00:23]} Ba3 {[%emt 0:01:19]} 14. Bd2 {[%emt 0:04:19]} Na5 {[%emt 0:01:42]} 15. Bd3 {[%emt 0:02:00]} O-O {[%emt 0:00:57]} 16. Rxb6 {[%emt 0:02:00]} Rfd8 {[%emt 0:00:55]} 17. f4 {[%emt 0:03:08]} Rac8 {[%emt 0:01:34]} 18. Ke2 {[%emt 0:01:10]} Rd7 {[%emt 0:02:14]} 19. Rhb1 {[%emt 0:00:50]} Rcd8 {[%emt 0:01:01]} 20. R1b5 {[%emt 0:04:13]} Rd5 {[%emt 0:03:40]} 21. Rxd5 {[%emt 0:02:16]} Rxd5 {[%emt 0:00:48]} 22. f5 {[%emt 0:20:13]} exf5 {[%emt 0:01:47]} 23. c4 {[%emt 0:00:08]} Rxd4 {[%emt 0:00:31]} 24. Bxa5 {[%emt 0:00:13]} Bd6 {[%emt 0:01:53]} 25. Bc3 {[%emt 0:00:26]} Bc5 {[%emt 0:00:00]} 26. Bxd4 {[%emt 0:00:04]} Bxb6 {[%emt 0:00:10]} 27. Bxb6 {[%emt 0:00:04]} g6 {[%emt 0:00:03]} 28. Bd4 {[%emt 0:00:06]} Kf8 {[%emt 0:00:09]} 29. c5 {[%emt 0:00:03]} Ke7 {[%emt 0:00:37]} 30. a4 {[%emt 0:00:02]} h5 {[%emt 0:00:31]} 31. a5 {[%emt 0:00:04]} Kd7 {[%emt 0:00:09]} 32. Bc4 {[%emt 0:00:03]} Ke7 {[%emt 0:00:08]} 33. c6 {[%emt 0:00:08]} Kd6 {[%emt 0:00:44]} 34. cxb7 {[%emt 0:00:06]} Kc7 {[%emt 0:00:01]} 35. a6 {[%emt 0:00:08]} h4 {[%emt 0:00:11]} 36. Be5+ {[%emt 0:00:05]} Kb6 {[%emt 0:00:07]} 37. b8=Q+ {[%emt 0:00:05]} 1-0